Cogmind - Beta 16 @@@ ROGUE MODE // 2026.02.07 @ 23:29:20 Player: Triffids Result: Self-destructed Performance ------------- Evolutions (1) 500 Regions Visited (2) 400 Robots Destroyed (25) 125 Value Destroyed (371) 371 Prototype IDs (0) 0 Alien Tech Used (0) 0 Bonus (0) 0 TOTAL SCORE: 1396 Bonus ------- None Cogmind --------- Core Integrity 400/400 Matter 300/300 Energy 125/125 System Corruption 0% Temperature Cool (0) Movement Walking (120) Location -9/Materials Parts ------- > --- POWER (1) -------- Light Ion Engine > --- PROPULSION (4) --- Aluminum Leg Aluminum Leg Aluminum Leg Aluminum Leg > --- UTILITY (2) ------ Small Storage Unit Seismic Detector > --- WEAPON (2) ------- Beam Cannon Light Cannon > --- INVENTORY (8) ---- Aluminum Leg Aluminum Leg Sensor Array Signal Interpreter Terrain Scan Processor Hacking Suite Grenade Launcher Mining Laser Peak State ------------ > --- POWER ------------ Light Ion Engine > --- PROPULSION ------- Aluminum Leg Aluminum Leg Aluminum Leg Aluminum Leg > --- UTILITY ---------- Small Storage Unit Seismic Detector > --- WEAPON ----------- Beam Cannon Light Cannon > --- INVENTORY -------- Aluminum Leg Aluminum Leg Sensor Array Signal Interpreter Terrain Scan Processor Hacking Suite Grenade Launcher Mining Laser [Rating: 10] Favorites ----------- Power Light Ion Engine Engine Light Ion Engine Propulsion Aluminum Leg Leg Aluminum Leg Wheel Wheel Utility Small Storage Unit Device Seismic Detector Storage Small Storage Unit Weapon Beam Cannon Energy Gun Medium Laser Energy Cannon Beam Cannon Ballistic Cannon Light Cannon Special Weapon Mining Laser Build | -11 -10 -9 ------- Run | Yrd Mat Mat Slots Evolved 2 | . . 2 Power . | . . . Propulsion 2 | . . 2 Utility . | . . . Weapon . | . . . Parts Attached 16 | 8 6 2 Power 2 | 1 1 . Engine 2 | 1 1 . Core . | . . . Reactor . | . . . Propulsion 7 | 3 2 2 Treads . | . . . Leg 4 | . 2 2 Wheel 3 | 3 . . Hover . | . . . Flight . | . . . Utility 2 | 2 . . Device 1 | 1 . . Storage 1 | 1 . . Processor . | . . . Hackware . | . . . Protection . | . . . Artifact . | . . . Weapon 5 | 2 3 . Energy Gun 2 | 2 . . Energy Cannon 1 | . 1 . Ballistic Gun . | . . . Ballistic Cannon 1 | . 1 . Launcher . | . . . Special Weapon 1 | . 1 . Impact Weapon . | . . . Slashing Weapon . | . . . Piercing Weapon . | . . . Special Melee Weapon . | . . . Unidentified Prototypes . | . . . Parts Lost . | . . . Power . | . . . Propulsion . | . . . Utility . | . . . Weapon . | . . . Highest Loss Streak . | . . . To Critical Strikes . | . . . Average Backups 7 | 5 7 7 Power . | . . . Propulsion 3 | 2 3 2 Utility 1 | . 1 2 Weapon 2 | 1 2 2 Tool/Special . | . . . Unused Backups 14 | . 7 7 Power 1 | . 1 . Propulsion 4 | . 2 2 Utility 5 | . 2 3 Weapon 4 | . 2 2 Tool/Special . | . . . Average Slot Usage (%) 99 | . 100 99 Engine 12 | . 14 11 Leg 27 | . 18 43 Wheel 6 | . 9 . Device 12 | . 14 11 Storage 12 | . 14 11 Energy Gun 2 | . 4 . Energy Cannon 11 | . 11 11 Ballistic Cannon 9 | . 9 11 Special Weapon 2 | . 3 . Peak Build Rating 10 | 8 8 10 Average Rating 7 | 5 7 9 On Entrance 5 | . 8 7 Avg Prop Armor Cover (%) 15 | 15 . . Naked Turns . | . . . Heaviest Build 15 | 13 15 15 Greatest Support 40 | 26 20 40 Greatest Overweight (x) 1 | 1 . . Average Overweight (x) . | . . . Largest Inventory Capacity 8 | 8 8 8 Average Capacity 7 | 7 8 8 Most Carried 8 | 8 8 8 Average Carried 7 | 5 7 7 Final Capacity 8 | 8 8 8 Final Carried 8 | 8 8 8 Class Distribution -------------------- 86% | Mutant 13% | Scavenger-Mutant Dominant Class ---------------- Mutant | -10/Materials Mutant | -9/Materials Resources | -11 -10 -9 ----------- Run | Yrd Mat Mat Matter Collected 518 | 280 174 64 Remotely . | . . . Salvage Created 744 | 173 325 246 Parts 45 | 10 24 11 Haulers Intercepted . | . . . Recyclers Shooed . | . . . Parts Field Recycled . | . . . Retrieved Matter . | . . . Parts Self-Destructed . | . . . Prevented . | . . . Parts Restored . | . . . Kills | -11 -10 -9 ------- Run | Yrd Mat Mat Combat Hostiles Destroyed 11 | . 11 . Cannons 11 | . 11 . Classes Destroyed 6 | 2 4 . Builder 2 | . 1 1 Tunneler 6 | 5 1 . Recycler 4 | 1 . 3 Operator 2 | . 1 1 Swarmer 6 | . 6 . Grunt 5 | . 5 . Best Kill Streak 6 | 4 6 3 Combat Bots Only 6 | . 6 . Max Kills in Single Turn 1 | 1 1 1 Gunslinging . | . . . Exploded . | . . . Melee . | . . . Uniques/NPCs Destroyed . | . . . Combat | -11 -10 -9 -------- Run | Yrd Mat Mat Hostile Shots Fired 50 | . 50 . Missed 13 | . 13 . Hits 37 | . 37 . Projectile 37 | . 37 . Critical Strikes 1 | . 1 . Damage Taken 348 | . 348 . Core 82 | . 82 . Absorbed by Shields . | . . . Core Remaining (%) 83 | 100 67 . Volleys Fired 71 | 17 43 11 Largest 2 | 2 2 2 Hottest 160 | 100 160 90 Shots Fired 129 | 34 73 22 Gun 37 | 34 3 . Cannon 87 | . 65 22 Launcher . | . . . Special 5 | . 5 . Kinetic 37 | . 26 11 Thermal 92 | 34 47 11 Explosive . | . . . Electromagnetic . | . . . Robot Hit Streak 7 | 3 7 5 Robot Miss Streak 3 | 2 3 2 Penetration Max . | . . . Secondary Targets . | . . . Shots Hit Robots 69 | 18 36 15 Core Hits 25 | 7 14 4 Critical Kills . | . . . Critical Parts Destroyed . | . . . Critical Strikes 3 | 3 . . Burn 3 | 3 . . Melee Attacks . | . . . Impact . | . . . Slashing . | . . . Piercing . | . . . Sneak Attacks . | . . . Combat Hostiles . | . . . Follow-up Attacks . | . . . Damage Inflicted 1136 | 235 626 275 Guns 261 | 235 26 . Cannons 851 | . 576 275 Explosions . | . . . Melee . | . . . Ramming . | . . . Kinetic 325 | . 138 187 Thermal 811 | 235 488 88 Explosive . | . . . Electromagnetic . | . . . Impact . | . . . Slashing . | . . . Piercing . | . . . Highest Corruption . | . . . Average Corruption . | . . . Corruption Purged . | . . . Corruption Blocked . | . . . Overload Shots . | . . . Overflow Damage 54 | . 34 20 Projectiles 54 | . 34 20 Explosions . | . . . Melee . | . . . Knockbacks 7 | . 4 3 Impact . | . . . Kinetic 7 | . 4 3 Secondary . | . . . Self-Inflicted Damage . | . . . Shots . | . . . Rammed . | . . . Targets Rammed . | . . . Kicked . | . . . Crushed . | . . . Highest Temperature 273 | 273 270 105 Average Temperature 94 | 136 88 40 Received Heat Transfer 69 | . 69 . Effects 1 | . 1 . Energy Bleed 1 | . 1 . Siege Activations . | . . . Martial Activations . | . . . Shielding Activations . | . . . Robots Disrupted . | . . . Combat Hostiles . | . . . Robots Corrupted . | . . . Combat Hostiles . | . . . Parts Fried . | . . . Impact Corruptions . | . . . Robots Melted . | . . . Combat Hostiles . | . . . Parts Melted 10 | 6 4 . Heat Transferred 2159 | 925 1049 185 Parts Sabotaged . | . . . Parts Stolen . | . . . Parts Stripped . | . . . Power Chain Reactions . | . . . Alert | -11 -10 -9 ------- Run | Yrd Mat Mat Maximum Alert Level . | . . . Low Security (%) 100 | 100 100 100 Level 1 . | . . . Level 2 . | . . . Level 3 . | . . . Level 4 . | . . . Level 5 . | . . . High Security . | . . . Max Security . | . . . Peak Influence 178 | 10 178 61 Initial 61 | . . 61 Average 62 | 1 99 22 Influence Increases 379 | 30 324 25 Destroy 0b10 Robot/C 220 | . 220 . Destroy 0b10 Robot/NC 70 | 30 15 25 Destroy Leader 50 | . 50 . Successful Hack 5 | . 5 . Disable Machine 30 | . 30 . Destroy Structure 4 | . 4 . Influence Decreases 379 | 30 179 170 Entered New Map 84 | . . 84 Time Decay 295 | 30 179 86 Squads Dispatched 4 | . 3 1 Investigation 2 | . 2 . Extermination . | . . . Reinforcement 2 | . 1 1 Assault . | . . . Garrison . | . . . Intercept . | . . . Searches Triggered . | . . . Construction Impeded . | . . . Haulers Reinforced . | . . . Active Scanning Responses . | . . . Cargo Convoy Interrupts . | . . . Stealth | -11 -10 -9 --------- Run | Yrd Mat Mat Distress Signals 1 | . 1 . Communications Jammed . | . . . Distress Signals . | . . . Times Spotted 15 | . 14 1 Peak Tracking Total 4 | . 4 . Tactical Retreats . | . . . Traps | -11 -10 -9 ------- Run | Yrd Mat Mat Traps Triggered 2 | . 2 . Indirectly . | . . . Trap Hack Attempts . | . . . Triggered . | . . . Disarmed . | . . . Reprogrammed . | . . . Reused . | . . . Traps Extracted . | . . . Installed . | . . . Triggered . | . . . Machines | -11 -10 -9 ---------- Run | Yrd Mat Mat Machines Disabled 2 | . 2 . Max in Single Turn 1 | . 1 . Machines Repaired . | . . . Machines Dismantled . | . . . Machines Sabotaged . | . . . Overloaded Fab Kills . | . . . Hacking | -11 -10 -9 --------- Run | Yrd Mat Mat Machines Accessed 3 | . 2 1 Terminals 3 | . 2 1 Fabricators . | . . . Repair Stations . | . . . Recycling Units . | . . . Scanalyzers . | . . . Garrison Access . | . . . Total Hacks 8 | . 5 3 Successful 5 | . 4 1 Failed 3 | . 1 2 Catastrophic . | . . . Database Lockouts . | . . . Manual 5 | . 4 1 Terminals 8 | . 5 3 Fabricators . | . . . Repair Stations . | . . . Recycling Units . | . . . Scanalyzers . | . . . Garrison Access . | . . . Terminal Hacks 3 | . 2 1 Terminal Index 1 | . 1 . Locate Traps 1 | . . 1 Zone Layout 1 | . 1 . Fabricator Hacks . | . . . Repair Station Hacks . | . . . Recycling Unit Hacks . | . . . Scanalyzer . | . . . Garrison Access Hacks . | . . . Unauthorized Hacks 2 | . 2 . Terminals 2 | . 2 . Botnet 2 | . 2 . Fabricators . | . . . Repair Stations . | . . . Recycling Units . | . . . Scanalyzers . | . . . Garrison Access . | . . . Data Cores Recovered . | . . . Used . | . . . Hacking Detections 3 | . 2 1 Full Trace Events . | . . . Feedback Events . | . . . Feedback Blocked . | . . . Robot Schematics Acquired . | . . . Robots Built . | . . . Authchips . | . . . Time . | . . . Total Robot Build Rating . | . . . Part Schematics Acquired . | . . . Parts Built . | . . . Authchips . | . . . Time . | . . . Total Part Build Rating . | . . . Part Studies Acquired . | . . . Parts Repaired . | . . . Time . | . . . Parts Recycled . | . . . Recycled Matter . | . . . Retrieved Matter . | . . . Retrieved Components . | . . . Parts Scanalyzed . | . . . Part Schematics Acquired . | . . . Parts Damaged . | . . . Bothacking | -11 -10 -9 ------------ Run | Yrd Mat Mat Used RIF Installer . | . . . Robots Hacked . | . . . Non-combat . | . . . Combat . | . . . Robot Hacks Applied . | . . . Relay Couplers Released . | . . . Fabnet Peak Effective % . | . . . Robots Rewired . | . . . Allies Hacked . | . . . Hacks Repelled . | . . . Allies | -11 -10 -9 -------- Run | Yrd Mat Mat Total Allies . | . . . Largest Group . | . . . Highest-Rated Group . | . . . Highest-Rated Ally . | . . . Total Orders . | . . . Ally Attacks . | . . . Total Damage . | . . . Kills . | . . . Allies Corrupted . | . . . Allies Melted . | . . . Intel | -11 -10 -9 ------- Run | Yrd Mat Mat Active Infowar (turns) 713 | 50 443 220 Seismic 713 | 50 443 220 Robot Analysis Total . | . . . Derelict Logs Recovered . | . . . Drone Launches . | . . . Drone Recoveries . | . . . Exploration | -11 -10 -9 ------------- Run | Yrd Mat Mat Turns Passed 787 | 124 443 220 Spaces Moved 474 | 66 260 148 Core 21 | 21 . . Treads . | . . . Legs 315 | . 167 148 Wheels 138 | 45 93 . Hover . | . . . Flight . | . . . Fastest Speed 50 | 50 80 120 Average Speed 106 | 77 105 120 Slowest Speed 120 | 95 120 120 Overloaded Moves . | . . . Propulsion Burnouts . | . . . Robots Hopped . | . . . Potential Cave-ins . | . . . Cave-ins Triggered . | . . . Exploration Rate (%) 22 | 5 53 10 Regions Visited 2 Branch Regions . Pre-discovered Areas . | . . . Known Exits Taken . | . . . Unknown Exits Taken 2 | 1 1 . Scrap Searched . | . . . Spaces Dug . | . . . Terrain Destroyed 2 | . 2 . Melee . | . . . Projectile 2 | . 2 . AOE . | . . . Terrain Rammed . | . . . Walls Destroyed . | . . . Machines Disabled . | . . . Actions | -11 -10 -9 --------- Run | Yrd Mat Mat Total 619 | 102 349 168 Wait 24 | . 21 3 Move 472 | 65 259 148 Hop . | . . . Pick Up 22 | 11 8 3 Fast Attach 5 | 4 1 . Attach 5 | 3 . 2 Detach 1 | . 1 . Swap 7 | 1 6 . Drop 12 | 1 10 1 Fire 71 | 17 43 11 Melee . | . . . Ram . | . . . Kick . | . . . Crush . | . . . Escape Stasis . | . . . Rewire . | . . . Trap . | . . . Miscellaneous . | . . . Route ------- -11/Scrapyard -10/Materials (discovered 2 exits: *Mat / [*Min]) -9/Materials History --------- Turn | Location | Event 14 | -11/Scrapyard | Discovered new exit (range 15) 125 | -11/Scrapyard | Entered Materials 308 | -10/Materials | Build established: Mutant 315 | -10/Materials | Discovered new exit (range 12) 533 | -10/Materials | Discovered new exit (range 14) 568 | -10/Materials | Entered another Materials area 568 | -9/Materials | Evolved 2 slots: Propulsion x2 788 | -9/Materials | Self-destructed Last Messages --------------- 00696_ Acquired 9 matter. 00712_ R-06 Scavenger collects Sml. Storage Unit. 00718_ O-16 Technician: "IFF HANDSHAKE FAILED. SECURING TERMINAL." 00719_ T-07 Excavator knocked back. 00721_ O-16 Technician uses terminal to summon reinforcements. 00721_ ALERT: Hostiles spotted, dispatching reinforcements to Terminal M002. 00721_ O-16 Technician locks terminal. 00724_ T-07 Excavator knocked back. 00730_ Destroyed Datajack. 00738_ O-16 Technician destroyed. 00738_ R-06 Scavenger collects Hacking Suite. 00741_ R-06 Scavenger destroyed. 00743_ R-06 Scavenger collects Sml. Storage Unit. 00744_ R-06 Scavenger destroyed. 00756_ Acquired 32 matter. 00760_ Dropped Mining Laser. 00760_ Acquired Hacking Suite. Map ----- +----------------------------------------------------+ | | | | | | | | | | | | | | | | | | | | | | | | | | | | | | | | | | | ?????????????????????????????????????????????????? | | ?????????????????????????????????????????????????? | | ?????????????????????????????????????????????????? | | ????????????????????????????????#########????????? | | ############################### % ???????? | | *=%%= !%=== ???????? | | # #####!########### #???????? | | # #???#!#?# """ # %""" #???????? | | # #???#%#?# "Y" /@ """ ""T"" ????????? | | ####### #???#|#?# # """ "??????????????? | | ??????# #???# #?#! ??# ??????????????? | | ??????# #???# #?# ????# ????????????? | | ??????# #???# #?##??????# ##+### ???????????? | | #######+##### #?????????#r#????? ??????????? | | # # !## #?????????# #?????? ??????????? | | # # ##+########??# #???????######?????????? | | # # """ # #??# #??????????????????????? | | + + """ # #??# ???????????????????????? | | # # """ # #??# ???????????????????????? | | # # # #??# ???????????????????????? | | # ##################??# ???????????????????????? | | # #????????????????????+???????????????????????? | | # #????????????????????????????????????????????? | | # #????????????????????????????????????????????? | | # +????????????????????????????????????????????? | | # #????????????????????????????????????????????? | | # #????????????????????????????????????????????? | | # #????????????????????????????????????????????? | | # #????????????????????????????????????????????? | | # #????????????????????????????????????????????? | | # #????????????????????????????????????????????? | | + ????????????????????????????????????????????? | | ? ?????????????????????????????????????????????? | +----------------------------------------------------+ Best States ------------- Heat Dissipation 28 Energy Generation 10 Energy Capacity 125 Matter Stores 300 Matter Capacity 300 Sight Range 16 Terrain Scan Density 10 Evasion (%) 55 Item Schematics ----------------- None Robot Schematics ------------------ None Fabricated ------------ Nothing Repaired ---------- Nothing Studied --------- None Alien Tech Used ----------------- None Achievements -------------- None Challenges ------------ None Game ------ Seed ArmoredGlidesysBeacon Manual? 0 Play Time 00:09:30 Cumulative 276.0 hours Start 2026.02.07 @ 20:43:31 End 2026.02.07 @ 23:29:20 Sessions 3 Manual Loads 0 Difficulty Rogue Special Mode None Game No. 520 Rogue 520 Adventurer 0 Explorer 0 Win Type - Total 1 Types 1/0/0/0/0/0/0/0/0/0 Lore% 37 Gallery% 50 Achievement% 31 Wizard Run 0 Options --------- Layout 1 ASCII 0 Keyboard 1 Movement Vi Keybinds 0 Fullscreen 0 Font 20/Smallcaps Map View 59x39 Zoom Use 0% Tactical HUD 1 Map Filters NONE Filters NONE Steam 1 RUN: 008fb16b-8414-4b1a-be29-073d877915bb